[Event "81st Italian Championship 2022"]
[Site "Cagliari"]
[Date "2022.11.21"]
[Round "9.1"]
[White "Brunello, Sabino"]
[Black "Barp, Alberto"]
[Result "0-1"]
[ECO "D41"]
[WhiteElo "2518"]
[BlackElo "2412"]
[Annotator "TA"]
[PlyCount "62"]
[EventDate "2022.11.12"]
[EventType "tourn"]
[EventCountry "ITA"]
[SourceTitle "playchess.com"]
[Source "ChessBase"]
[SourceQuality "1"]
[TimeControl "40/6000+30:20/3000:900+30"]

{[%evp 26,62,0,6,20,0,0,0,6,10,19,0,20,0,10,0,0,0,0,0,0,0,0,-11,26,-8,0,-8,-23,-331,-107,-333,-327,-641,-575,-681,-577,-733,-712]} 1. d4 {[%emt 0:00:02]} d5 {[%emt 0:11:58]} 2. c4 {[%emt 0:00:22]} e6 {[%emt 0:00:03]} 3. Nf3 {[%emt 0:00:08]} Nf6 {[%emt 0:01:39]} 4. Nc3 {[%emt 0:00:06]} c5 {[%emt 0:01:21]} 5. cxd5 {[%emt 0:01:04]} Nxd5 {[%emt 0:05:19]} 6. e4 {[%emt 0:00:26]} Nxc3 {[%emt 0:00:04]} 7. bxc3 {[%emt 0:00:03]} cxd4 {[%emt 0:00:04]} 8. cxd4 {[%emt 0:00:05]} Bb4+ {[%emt 0:00:04]} 9. Bd2 {[%emt 0:00:05]} Bxd2+ {[%emt 0:00:02]} 10. Qxd2 {[%emt 0:00:03]} O-O {[%emt 0:00:04]} 11. Bc4 {[%emt 0:00:12]} Nd7 {[%emt 0:00:08]} 12. O-O {[%emt 0:00:10]} b6 {[%emt 0:00:05]} 13. Rad1 {[%emt 0:00:22]} Bb7 {[%emt 0:00:06]} 14. Rfe1 {[%emt 0:00:11]} Rc8 {[%emt 0:00:04] D41: Queen's Gambit Declined: Semi-Tarrasch with 5 cxd5.} 15. Bb3 {[%emt 0:01:13]} Re8 {[%emt 0:00:05]} 16. h3 {[%emt 0:02:38]} Qf6 {[%emt 0:03:44] [#] The position is equal.} 17. Nh2 $146 {[%emt 0:03:34][%cal Bf3h2,Bh2f1,Bf1g3,Bg3e2][%mdl 32]} ({Predecessor:} 17. Re3 Qf4 18. Qe2 Nf6 19. g3 Qc7 20. Ne5 b5 21. Ng4 Nxg4 22. hxg4 Qb6 23. d5 exd5 24. Bxd5 Bxd5 25. Rxd5 {½-½ (36) Mchedlishvili,M (2593)-Macovei,A (2478) Chennai 2022}) 17... h6 {[%emt 0:02:07]} 18. Nf1 {[%emt 0:04:48]} Qg6 {[%emt 0:09:58]} 19. Ng3 {[%emt 0:19:36]} (19. f3 {with more complications.} Ba6 20. Ne3 Qg3 21. Rc1) 19... Nf6 {[%emt 0:08:00][%cal Rf6e4]} 20. Bc2 {[%emt 0:07:32]} Qg5 {[%emt 0:01:19]} 21. Re3 {[%emt 0:09:58]} Red8 {[%emt 0:06:15]} 22. Bb1 {[%emt 0:06:20]} Rc7 {[%emt 0:06:56][%cal Bc8c7,Bc7d7,Bd7d4,Bd4d2][%mdl 32]} 23. Ne2 {[%emt 0:31:05]} Rcd7 {[%emt 0:11:52]} 24. f4 {[%emt 0:08:15] Inhibits e5.} Qa5 {[%emt 0:00:16]} 25. Qb2 {[%emt 0:12:24]} Qh5 {[%emt 0:06:57]} 26. Rd2 {[%emt 0:02:11]} Qh4 {[%emt 0:01:21]} 27. Bd3 $2 {[%emt 0:00:35][%mdl 8192]} (27. Rd1 $11 {and White stays safe.}) 27... Qe1+ $19 {[%emt 0:06:51]} 28. Kh2 {[%emt 0:00:01] [#]} Rxd4 $3 {[%emt 0:00:08][%mdl 512]} 29. Qc3 $2 {[%emt 0:01:00]} (29. Rg3 Nxe4 30. Rxg7+ Kxg7 31. Nxd4 Qg3+ 32. Kh1) (29. Rd1 Qh4) 29... Bxe4 {[%emt 0:08:35] Black is clearly winning.} 30. Rg3 {[%emt 0:00:30]} Nh5 {[%emt 0:11:28]} 31. Bxe4 {[%emt 0:00:29]} Rxd2 {[%emt 0:00:09] Weighted Error Value: White=0.81/Black=0.21 (precise)} 0-1

[Event "81st Italian Championship 2022"]
[Site "Cagliari"]
[Date "2022.11.21"]
[Round "9.2"]
[White "Basso, Pier Luigi"]
[Black "Godena, Michele"]
[Result "1/2-1/2"]
[ECO "C70"]
[WhiteElo "2503"]
[BlackElo "2463"]
[Annotator "TA"]
[PlyCount "150"]
[EventDate "2022.11.12"]
[EventType "tourn"]
[EventCountry "ITA"]
[SourceTitle "playchess.com"]
[Source "ChessBase"]
[SourceQuality "1"]
[TimeControl "40/6000+30:20/3000:900+30"]

{[%evp 9,150,37,57,30,45,44,39,39,38,47,43,22,34,36,52,48,49,49,47,48,55,51,52,56,49,46,54,47,72,51,50,44,46,46,47,48,50,31,39,15,10,14,16,12,25,14,14,15,33,28,31,28,39,39,39,31,41,24,41,44,65,36,60,59,68,67,102,104,102,99,114,110,113,96,96,96,96,96,99,96,96,79,83,79,96,96,96,95,77,83,94,94,96,96,96,97,100,95,97,59,59,52,73,79,70,62,70,70,70,23,23,23,23,23,75,0,0,0,0,0,0,0,0,0,0,0,0,-30,-30,-30,-30,-35,-34,-32,-25,-25,-26,-27,0,0,0,-29,0]} 1. e4 {[%emt 0:00:14]} e5 {[%emt 0:00:11]} 2. Nf3 {[%emt 0:00:06]} Nc6 {[%emt 0:00:06]} 3. Bb5 {[%emt 0:00:06]} a6 {[%emt 0:00:14]} 4. Ba4 {[%emt 0:00:06]} Bc5 {[%emt 0:27:05]} 5. O-O {[%emt 0:01:05]} Qf6 {[%emt 0:24:37]} 6. Nc3 {[%emt 0:07:20] Nd5 is the strong threat. C70: Ruy Lopez: 3...a6 4 Ba4, Norwegian and Delayed Schliemann.} Nge7 {[%emt 0:00:12]} 7. Nd5 {[%emt 0:04:18]} Nxd5 {[%emt 0:00:51]} 8. exd5 {[%emt 0:03:47] White is slightly better.} Nd4 {[%emt 0:02:35] [#]} 9. Nxe5 $1 {[%emt 0:06:26][%cal Oc2c3] Threatens to win with c3!} b5 {[%emt 0:03:32]} (9... Qxe5 $2 10. Re1 Qxe1+ 11. Qxe1+ Kd8 12. c3 $18) 10. Bb3 {[%emt 0:18:26] [#]} Bb7 $146 {[%emt 0:09:09]} (10... Qxe5 $2 11. Re1 d6 12. Rxe5+ dxe5 13. d3 $18) ({Predecessor:} 10... O-O 11. Ng4 Qf5 12. c3 Nxb3 13. axb3 Bb7 14. d4 Bd6 15. c4 Rae8 16. c5 Qxd5 {0-1 (22) Ribelles Sala,M (1364)-Basson,H (1738) LSS email 2009}) 11. Ng4 {[%emt 0:06:49]} Qd6 {[%emt 0:03:02]} 12. Re1+ {[%emt 0:02:13]} Kf8 {[%emt 0:00:27]} 13. Ne3 {[%emt 0:02:52]} Nxb3 {[%emt 0:22:24]} 14. axb3 {[%emt 0:00:13] Hoping for d4.} Bxe3 {[%emt 0:00:08]} 15. dxe3 {[%emt 0:00:34]} Qxd5 {[%emt 0:00:07]} 16. Qxd5 {[%emt 0:00:06]} Bxd5 {[%emt 0:00:04]} 17. e4 {[%emt 0:00:22]} Bb7 {[%emt 0:00:22]} 18. Bf4 {[%emt 0:00:21]} Rc8 {[%emt 0:00:41]} 19. Rad1 {[%emt 0:01:37]} Ke7 {[%emt 0:00:59]} 20. Rd3 {[%emt 0:04:04]} Rhe8 {[%emt 0:00:57]} 21. f3 {[%emt 0:04:00]} d6 {[%emt 0:05:58]} 22. Kf2 {[%emt 0:02:12]} f6 {[%emt 0:01:38]} 23. g4 {[%emt 0:00:24]} g5 {[%emt 0:00:47]} 24. Bd2 {[%emt 0:01:54][%cal Oh2h4]} h5 $1 {[%emt 0:00:21]} 25. h3 {[%emt 0:03:02]} Rh8 {[%emt 0:01:10]} 26. Kg2 {[%emt 0:01:52]} Rh7 {[%emt 0:00:44]} 27. Be3 $1 {[%emt 0:00:24]} Rch8 {[%emt 0:01:39]} 28. Bg1 {[%emt 0:00:18]} hxg4 {[%emt 0:00:46]} 29. hxg4 {[%emt 0:03:44]} Ke6 {[%emt 0:01:45]} 30. c4 {[%emt 0:00:31]} Rh1 {[%emt 0:00:28][%cal Oh8h2]} 31. Rdd1 {[%emt 0:01:05]} R1h7 {[%emt 0:00:38]} 32. Rc1 {[%emt 0:00:28]} Rd8 {[%emt 0:01:44]} 33. Bh2 {[%emt 0:00:28]} Kd7 {[%emt 0:01:00]} 34. Bg3 {[%emt 0:00:20]} Re7 {[%emt 0:00:36]} 35. Rh1 {[%emt 0:00:12]} Ke6 {[%emt 0:00:13]} 36. Rh6 {[%emt 0:00:34]} bxc4 {[%emt 0:00:28]} 37. bxc4 {[%emt 0:00:06]} Rb8 {[%emt 0:00:44]} 38. Be1 {[%emt 0:00:12]} Rf7 {[%emt 0:00:32]} 39. Bc3 {[%emt 0:00:18]} Bc8 {[%emt 0:00:34]} 40. Ra1 {[%emt 0:00:20]} Rb6 {[%emt 0:00:27]} 41. Ra5 {[%emt 0:49:32]} Ke7 {[%emt 0:11:02]} 42. Rh8 {[%emt 0:00:00]} Be6 {[%emt 0:06:22]} 43. c5 {[%emt 0:00:00]} Rc6 {[%emt 0:00:00]} 44. cxd6+ {[%emt 0:00:00]} cxd6 {[%emt 0:00:34]} 45. Ra8 {[%emt 0:00:00]} Bc8 {[%emt 0:01:29]} 46. Kg3 {[%emt 0:00:00] White is much more active.} Rc7 {[%emt 0:15:15]} 47. Ra1 {[%emt 0:00:00]} Rh7 {[%emt 0:00:40]} 48. Rd1 {[%emt 0:00:00]} Ke6 {[%emt 0:01:50]} 49. Rb8 {[%emt 0:00:00]} Rc6 {[%emt 0:02:30] Prevents Rb6.} 50. Rb4 {[%emt 0:00:00]} Bb7 {[%emt 0:08:22]} 51. Rbd4 {[%emt 0:00:00]} Rb6 {[%emt 0:00:18]} 52. R4d2 {[%emt 0:00:00]} Rc6 {[%emt 0:00:55]} 53. Bb4 {[%emt 0:00:00][%cal Rd2d6]} Rd7 {[%emt 0:00:00]} 54. Rd4 {[%emt 0:00:00]} Rb6 {[%emt 0:00:00][%cal Oa6a5]} 55. Re1 {[%emt 0:00:00]} Rb5 {[%emt 0:00:00]} 56. Bc3 {[%emt 0:00:00]} Rh7 {[%emt 0:00:03]} 57. Rdd1 {[%emt 0:00:00]} Rc5 {[%emt 0:00:10]} 58. Ra1 {[%emt 0:00:00]} Rc8 {[%emt 0:00:00]} 59. Ra4 {[%emt 0:00:00]} (59. Red1 $14) 59... Rch8 $1 $11 {[%emt 0:00:00] [#] ( -> ...Rh2)} 60. Kf2 {[%emt 0:00:00]} Rh2+ {[%emt 0:00:00]} 61. Ke3 {[%emt 0:10:59]} Rg2 {[%emt 0:09:18]} (61... Rh1 $11) 62. Ra5 {[%emt 0:00:00]} (62. Rc4 $16) 62... Rh3 {[%emt 0:03:14]} 63. Rf5 $1 {[%emt 0:00:00]} Rxg4 {[%emt 0:00:17]} 64. Rxf6+ {[%emt 0:00:00]} Ke7 {[%emt 0:00:02]} 65. Kd2 {[%emt 0:01:46]} Rg2+ {[%emt 0:02:43]} 66. Kc1 {[%emt 0:01:29]} g4 {[%emt 0:00:12]} 67. e5 {[%emt 0:03:45]} dxe5 {[%emt 0:00:07]} (67... Bxf3 {leads to mate.} 68. exd6+ Kd8 69. Ba5+ Kc8 70. Re8+ Kd7 71. Re7+ Kc6 72. d7+ Kb5 73. d8=Q) 68. Rb6 {[%emt 0:02:01]} Bxf3 {[%emt 0:00:09]} 69. Rxe5+ {[%emt 0:00:10]} Kd7 {[%emt 0:00:08]} 70. Kb1 {[%emt 0:00:18]} Re2 {[%emt 0:02:02] And now ...Be4+ would win.} 71. Rg5 {[%emt 0:00:48]} Re6 {[%emt 0:02:20]} 72. Rg7+ {[%emt 0:00:45]} Re7 {[%emt 0:00:03]} 73. Rg5 {[%emt 0:00:26]} Re6 {[%emt 0:00:47]} 74. Rg7+ {[%emt 0:00:05]} Re7 {[%emt 0:00:03]} 75. Rg5 {[%emt 0:00:07]} Re6 {[%emt 0:00:56] Weighted Error Value: White=0.06 (flawless) /Black=0.05 (flawless)} 1/2-1/2

[Event "81st Italian Championship 2022"]
[Site "Cagliari"]
[Date "2022.11.21"]
[Round "9.3"]
[White "David, Alberto"]
[Black "Carnicelli, Valerio"]
[Result "1/2-1/2"]
[ECO "B31"]
[WhiteElo "2517"]
[BlackElo "2325"]
[Annotator "TA"]
[PlyCount "142"]
[EventDate "2022.11.12"]
[EventType "tourn"]
[EventCountry "ITA"]
[SourceTitle "playchess.com"]
[Source "ChessBase"]
[SourceQuality "1"]
[TimeControl "40/6000+30:20/3000:900+30"]

{[%evp 11,142,6,31,22,38,40,45,28,32,34,42,21,19,22,19,0,0,0,0,0,0,0,0,0,21,0,0,0,0,0,0,0,0,0,0,0,1,14,22,0,26,30,29,31,31,22,49,37,38,39,39,48,53,44,49,56,49,43,47,43,54,56,63,63,63,67,68,37,66,39,54,0,45,20,29,0,25,19,31,25,35,0,0,0,0,0,19,19,27,0,0,7,7,8,62,0,0,0,28,7,29,36,55,62,104,16,104,104,534,104,231,104,104,104,104,104,106,0,0,0,0,0,0,0,0,0,0,0,0,0,0,0,0]} 1. e4 {[%emt 0:00:03]} c5 {[%emt 0:00:03]} 2. Nf3 {[%emt 0:00:04]} Nc6 {[%emt 0:00:04]} 3. Bb5 {[%emt 0:00:11]} g6 {[%emt 0:00:04]} 4. O-O {[%emt 0:00:17]} Bg7 {[%emt 0:00:03]} 5. d3 {[%emt 0:00:29]} e5 {[%emt 0:03:04]} 6. Bxc6 {[%emt 0:00:45]} dxc6 {[%emt 0:00:14]} 7. a4 {[%emt 0:03:14] B31: Sicilian: 2...Nc6 3 Bb5 g6.} Qc7 {[%emt 0:06:07]} 8. Be3 {[%emt 0:09:27]} b6 {[%emt 0:04:49]} 9. Na3 {[%emt 0:01:52] [#] White is slightly better.} Nf6 $146 {[%emt 0:05:51][%cal Bg8f6,Bf6d7,Bd7f8,Bf8e6,Be6d4][%mdl 32]} ({Predecessor:} 9... f6 10. c3 Be6 11. Qc2 Nh6 12. h3 O-O 13. Rae1 Rfd8 14. d4 cxd4 15. cxd4 Rac8 16. dxe5 fxe5 {½-½ (54) Gude,M (1773)-Mathisen,R (1945) Bad Homburg 2014}) 10. Nc4 {[%emt 0:15:05]} Nd7 {[%emt 0:01:38]} 11. Qc1 {[%emt 0:00:53]} O-O {[%emt 0:01:14]} 12. Bh6 {[%emt 0:00:12]} Re8 {[%emt 0:09:32]} 13. Kh1 {[%emt 0:13:59]} Nf8 {[%emt 0:04:22]} 14. Bxg7 {[%emt 0:05:25]} Kxg7 {[%emt 0:00:03]} 15. Ng1 {[%emt 0:00:04][%cal Bf3g1,Bg1e2,Be2c1][%mdl 32]} Ne6 {[%emt 0:00:09]} 16. Ne2 {[%emt 0:00:05]} Ba6 {[%emt 0:03:46]} 17. b3 {[%emt 0:00:26]} Rad8 {[%emt 0:07:18]} 18. Ne3 {[%emt 0:04:59]} Bc8 {[%emt 0:06:31]} 19. Qb2 {[%emt 0:05:21]} Nd4 {[%emt 0:04:33]} 20. Rae1 {[%emt 0:01:00]} f6 {[%emt 0:02:59]} 21. Nc1 {[%emt 0:02:50]} Qb8 {[%emt 0:05:05]} 22. f3 {[%emt 0:03:28]} Qd6 {[%emt 0:23:22]} 23. Rf2 {[%emt 0:01:14]} Ne6 {[%emt 0:00:37]} 24. Ne2 {[%emt 0:01:21] Inhibits Qd4.} Nd4 {[%emt 0:01:41]} 25. Ref1 {[%emt 0:06:51]} Nxe2 {[%emt 0:05:31]} 26. Rxe2 {[%emt 0:00:15]} Qd4 {[%emt 0:03:22]} 27. Qc1 {[%emt 0:01:14]} Be6 {[%emt 0:02:20]} 28. Qe1 {[%emt 0:01:04]} b5 {[%emt 0:01:42]} 29. axb5 {[%emt 0:02:20]} cxb5 {[%emt 0:00:05]} 30. Qa5 {[%emt 0:00:03][%csl LRa7,LRb5]} c4 {[%emt 0:01:36]} 31. dxc4 {[%emt 0:04:25]} bxc4 {[%emt 0:00:03]} 32. bxc4 {[%emt 0:00:09]} Bxc4 {[%emt 0:03:22]} 33. Nxc4 {[%emt 0:00:20]} Qxc4 {[%emt 0:00:02]} 34. Qxa7+ {[%emt 0:00:05]} Kg8 {[%emt 0:00:32]} 35. Qe3 {[%emt 0:01:28]} Rd4 {[%emt 0:01:02]} 36. h3 {[%emt 0:01:02]} Red8 {[%emt 0:00:05]} 37. Kh2 {[%emt 0:00:35]} Kg7 {[%emt 0:00:18]} 38. Ra1 {[%emt 0:02:12]} R8d7 {[%emt 0:01:23]} 39. Rf2 {[%emt 0:07:06]} Qc7 {[%emt 0:02:41]} 40. Qb3 {[%emt 0:11:41]} (40. Ra8 {feels hotter.} Qc5 41. Rd2 Qc7 42. Re2) 40... Qb7 {[%emt 0:02:29]} 41. Qe3 {[%emt 0:54:55]} (41. Ra4 $14) 41... Qc6 {[%emt 0:01:09]} 42. Ra5 {[%emt 0:00:00]} g5 {[%emt 0:18:37]} 43. Qa3 {[%emt 0:00:00]} h5 {[%emt 0:01:20]} 44. Ra6 {[%emt 0:00:00]} Qc4 {[%emt 0:01:39]} 45. Ra8 {[%emt 0:00:00] And now Qf8+ would win.} (45. c3 {keeps more tension.} Rd1 46. Ra8 Rf7 47. Rb8) 45... R4d6 {[%emt 0:02:16]} 46. Ra7 {[%emt 0:00:00]} Rd1 {[%emt 0:04:42]} 47. Rxd7+ {[%emt 0:00:00]} Rxd7 $11 {[%emt 0:00:00][%mdl 4096] Endgame KQR-KQR} 48. Qe3 {[%emt 0:00:00][%cal Oh3h4]} Qd4 {[%emt 0:03:26]} 49. Qxd4 {[%emt 0:00:00]} Rxd4 {[%emt 0:00:00] KR-KR} 50. Re2 {[%emt 0:00:00]} (50. c3 $5 {[%cal Rc3d4]} Rc4 51. Rc2 $14) 50... Rd1 {[%emt 0:02:06]} 51. Kg3 {[%emt 0:00:00]} Rf1 {[%emt 0:00:17]} 52. h4 {[%emt 0:00:00]} Kg6 {[%emt 0:00:33]} (52... gxh4+ $11 53. Kxh4 Kg6) 53. Rd2 {[%emt 0:00:00]} (53. hxg5 $1 $14 Kxg5 54. Re3) 53... gxh4+ {[%emt 0:05:31]} 54. Kxh4 {[%emt 0:00:00]} Rh1+ {[%emt 0:00:00]} 55. Kg3 {[%emt 0:00:00]} Rf1 {[%emt 0:00:00]} 56. Rd7 {[%emt 0:00:00]} Rc1 {[%emt 0:00:00]} 57. Rc7 {[%emt 0:00:00]} Kg5 {[%emt 0:00:00]} 58. c4 {[%emt 0:00:00]} (58. Rc8 $16) 58... h4+ {[%emt 0:00:00]} (58... f5 $1 $11 {remains equal.}) 59. Kh2 $16 {[%emt 0:00:00] White is more active.} Kf4 $2 {[%emt 0:08:02][%mdl 8192]} (59... f5 $16 {is tougher.}) 60. Rc6 $2 {[%emt 0:00:00]} (60. Rg7 $1 $18 {and the rest is easy.} h3 61. Rg4+ (61. gxh3 Rc2+ 62. Rg2 Rxc4 $11) 61... Ke3 62. Kxh3 (62. gxh3 Kxf3 63. Rg6 Kxe4 $11)) 60... Kg5 {[%emt 0:00:04]} 61. c5 {[%emt 0:03:51]} (61. Rc8 $1 $18 {is the precise move to win.}) 61... f5 {[%emt 0:06:02] [#]} 62. exf5 $1 {[%emt 0:00:00]} Kxf5 {[%emt 0:02:34] [#]} 63. Rc8 $1 {[%emt 0:00:00]} e4 {[%emt 0:01:54]} 64. fxe4+ {[%emt 0:02:10]} ({White should play} 64. Rf8+ $16 Kg5 65. fxe4) 64... Kxe4 $11 {[%emt 0:00:02] The position is equal.} 65. c6 {[%emt 0:00:42]} Kd5 {[%emt 0:00:25]} 66. Rd8+ {[%emt 0:11:34]} Ke5 {[%emt 0:00:30]} 67. Re8+ {[%emt 0:01:29]} Kd5 {[%emt 0:00:29]} 68. Kh3 {[%emt 0:00:39]} Rh1+ $1 {[%emt 0:00:19]} 69. Kg4 {[%emt 0:00:05] c7 would kill now.} Kxc6 {[%emt 0:00:11]} 70. Rh8 {[%emt 0:00:39]} Rh2 {[%emt 0:00:08]} 71. Rxh4 {[%emt 0:00:31]} Rxg2+ {[%emt 0:00:03] Black defended with fortune.   Weighted Error Value: White=0.24 (precise) /Black=0.23 (precise)} 1/2-1/2

[Event "81st Italian Championship 2022"]
[Site "Cagliari"]
[Date "2022.11.21"]
[Round "9.4"]
[White "Sonis, Francesco"]
[Black "Lettieri, Giuseppe"]
[Result "1-0"]
[ECO "D87"]
[WhiteElo "2547"]
[BlackElo "2427"]
[Annotator "TA"]
[PlyCount "79"]
[EventDate "2022.11.12"]
[EventType "tourn"]
[EventCountry "ITA"]
[SourceTitle "playchess.com"]
[Source "ChessBase"]
[SourceQuality "1"]
[TimeControl "40/6000+30:20/3000:900+30"]

{[%evp 19,79,12,50,0,0,0,0,0,0,0,0,0,0,0,23,0,0,0,0,0,0,0,0,-35,0,0,14,27,21,14,111,103,108,105,105,87,222,214,216,207,207,207,207,207,207,207,207,207,400,206,396,397,391,391,29966,29968,29990,29991,29991,29971,5297,79]} 1. d4 {[%emt 0:03:44]} Nf6 {[%emt 0:00:05]} 2. c4 {[%emt 0:00:04]} g6 {[%emt 0:00:05]} 3. Nc3 {[%emt 0:00:29]} d5 {[%emt 0:00:06]} 4. cxd5 {[%emt 0:00:05]} Nxd5 {[%emt 0:00:05]} 5. e4 {[%emt 0:00:04]} Nxc3 {[%emt 0:00:08]} 6. bxc3 {[%emt 0:00:04]} Bg7 {[%emt 0:00:07]} 7. Bc4 {[%emt 0:01:30]} c5 {[%emt 0:00:06]} 8. Ne2 {[%emt 0:00:05]} Nc6 {[%emt 0:00:06]} 9. Be3 {[%emt 0:00:05]} O-O {[%emt 0:00:15]} 10. O-O {[%emt 0:00:13]} b6 {[%emt 0:01:54]} 11. Qd2 {[%emt 0:01:24] 11.h4 is a critical line. D87: Exchange Grünfeld: Classical Line: Variations without ...cxd4.} ({White should try} 11. dxc5 $14 Ne5 12. Qxd8 Rxd8 13. Bd5) 11... Bb7 $11 {[%emt 0:00:12]} 12. Rfd1 {[%emt 0:00:26]} cxd4 {[%emt 0:05:01]} 13. cxd4 {[%emt 0:00:10] The position is equal.} Na5 {[%emt 0:01:00]} 14. Bd3 {[%emt 0:00:06]} Rc8 {[%emt 0:06:07]} 15. Rac1 {[%emt 0:00:07]} e6 {[%emt 0:00:19]} 16. h4 {[%emt 0:13:52][%cal Bh2h4,Bh4h5][%mdl 32]} Qd7 {[%emt 0:50:43]} 17. h5 {[%emt 0:00:11]} Rxc1 {[%emt 0:04:28]} 18. Rxc1 {[%emt 0:00:08]} Rc8 {[%emt 0:02:14]} 19. h6 {[%emt 0:00:14] [#]} Bf8 $146 {[%emt 0:02:38]} ({Predecessor:} 19... Rxc1+ 20. Qxc1 Bf8 21. Qb2 Qc6 22. Bf4 Nc4 23. Qb3 b5 24. Qc3 a6 25. f3 Nb6 {0-1 (57) Samadov,R (2375)-Padmini,R (2345) Chess.com INT 2022}) 20. Bg5 {[%emt 0:16:55][%cal Be3g5,Bg5f6,Bf6e5][%mdl 32]} Rxc1+ {[%emt 0:03:16]} 21. Qxc1 {[%emt 0:00:10]} Nc6 {[%emt 0:14:29]} 22. Bf6 $1 {[%emt 0:04:49]} e5 {[%emt 0:00:45]} 23. d5 {[%emt 0:01:41] Black must now prevent Bb5.} Nb4 {[%emt 0:00:16][%csl LRa2,LRd3]} 24. Bb1 {[%emt 0:00:22] White wants to play Ng3.} Qd6 {[%emt 0:04:33]} (24... Nxd5 $1 $11 25. exd5 Qxd5) 25. Qg5 $16 {[%emt 0:05:08]} Bxh6 {[%emt 0:00:06]} 26. Bxe5 {[%emt 0:00:03]} Qf8 {[%emt 0:02:15]} (26... Qxd5 $2 27. Qf6 Qxe5 28. Qxe5 $18) 27. Qg3 {[%emt 0:01:56] Threatens to win with Bd6. White is more active.} Qe8 {[%emt 0:04:04] [#] Loses the game.} (27... Na6 $16) 28. Bb2 $1 $18 {[%emt 0:07:45] aiming for Qc3.} Nxd5 {[%emt 0:05:02] [#]} 29. Qd3 $1 $40 {[%emt 0:00:16][%mdl 128] White wants a kill.} Bg7 {[%emt 0:03:00]} (29... Nf4 $2 30. Nxf4 Bxf4 31. Qd4 $18) 30. Bxg7 {[%emt 0:00:48]} Kxg7 {[%emt 0:00:01]} 31. exd5 {[%emt 0:00:09]} Bxd5 {[%emt 0:00:04]} 32. Qd4+ {[%emt 0:00:38]} Kg8 {[%emt 0:00:18]} 33. Nc3 {[%emt 0:00:07]} Qe1+ {[%emt 0:00:45]} 34. Kh2 {[%emt 0:00:05]} Bc6 {[%emt 0:00:21]} (34... Be6 {was worth a try.} 35. Bd3 Qa1) 35. Be4 {[%emt 0:00:05]} Bxe4 {[%emt 0:01:30]} 36. Nxe4 {[%emt 0:00:05] Strongly threatening Qd8+.} f5 $2 {[%emt 0:00:28]} (36... Qe2 $18 37. Nf6+ Kg7) 37. Qd8+ {[%emt 0:00:20]} Kg7 {[%emt 0:00:50]} 38. Qf6+ {[%emt 0:01:33]} Kh6 {[%emt 0:00:27]} 39. Ng3 {[%emt 0:00:21]} Qxf2 {[%emt 0:01:05]} 40. Qh4+ $2 {[%emt 0:00:04] Weighted Error Value: White=0.05 (flawless) /Black=0.44} (40. Qf8+ $18 {has better winning chances.} Kg5 41. Ne4+ fxe4 42. Qxf2) 1-0